bitfinex-derivatives/quotes_SOLF0:USTF0_20241010
["timestamp","ask_amount","ask_price","bid_price","bid_amount"]
[1728581942963,3.6198,138.26,138.25,2.16888]
[1728581943961,14.7398,138.26,138.25,2.16888]
[1728581944965,16.84,138.26,138.23,0.12502]
[1728581945154,11.12,138.24,138.23,0.12502]
[1728581945359,11.12,138.24,138.23,2.2939]
[1728581945870,14.7403,138.24,138.23,2.2939]
[1728581948758,7.26504095,138.24,138.23,2.2939]
[1728581949272,3.6203,138.24,138.23,2.2939]
[1728581950359,3.6202,138.25,138.23,13.4139]
[1728581950965,5.72,138.26,138.23,13.4139]
[1728581951265,3.6203,138.24,138.23,2.2939]
[1728581953065,16.84,138.26,138.23,2.2939]
[1728581953277,5.7,138.28,138.23,13.4139]
[1728581953565,16.82,138.28,138.23,13.4139]
[1728581953756,3.6199,138.26,138.23,17.0343]
[1728581954163,3.6199,138.26,138.23,13.4139]
[1728581954362,3.6201,138.25,138.23,13.4139]
[1728581955956,11.12,138.27,138.23,2.2939]
[1728581956160,3.6203,138.24,138.23,2.2939]
[1728581961973,14.7403,138.24,138.23,2.2939]
[1728581962970,3.6203,138.24,138.23,2.2939]
[1728581964275,14.7403,138.24,138.23,2.2939]
[1728581964977,18.39011114,138.24,138.23,2.2939]
[1728581965474,18.39011114,138.24,138.23,0.12502]
[1728581983986,3.6203,138.24,138.23,0.12502]
[1728581984293,7.30278027,138.24,138.23,0.12502]
[1728581984687,3.6203,138.24,138.23,2.2939]
[1728581984885,3.6202,138.25,138.23,2.2939]
[1728581986085,3.6203,138.24,138.23,2.2939]
[1728581989978,9.32,138.26,138.23,13.4139]
[1728581991385,3.62,138.25,138.23,13.4139]
[1728581992684,3.62,138.25,138.23,16.1423]
[1728581994186,3.6203,138.24,138.23,16.1423]
[1728581994579,11.12,138.27,138.23,16.1423]
[1728581995391,3.6198,138.26,138.23,16.1423]
[1728581998285,3.6198,138.26,138.24,11.12]
[1728581999083,3.6198,138.26,138.24,13.28888]
[1728581999686,3.6198,138.26,138.24,2.16888]
[1728582000387,3.6197,138.27,138.24,16.90918]
[1728582000589,102.66540512,138.29,138.25,11.12]
[1728582001189,3.6195,138.27,138.25,13.28888]
[1728582002692,102.66540512,138.29,138.26,11.12]
[1728582003482,3.6195,138.28,138.26,11.12]
[1728582003688,102.66540512,138.29,138.26,13.28888]
[1728582004191,3.6194,138.28,138.26,13.28888]
[1728582007198,3.6195,138.27,138.26,13.28888]
[1728582009798,3.6195,138.27,138.26,2.16888]
[1728582016101,14.7395,138.27,138.26,2.16888]
[1728582016404,3.62,138.25,138.24,2.16888]
[1728582016604,11.12,138.25,138.23,0.12502]
[1728582017103,3.6203,138.24,138.23,0.12502]
[1728582018106,3.6203,138.24,138.23,2.2939]
[1728582019004,7.21868759,138.24,138.23,2.2939]
[1728582019313,24.01868759,138.24,138.23,0.12502]
[1728582022204,11.12,138.23,138.2,2.16888]
[1728582022399,11.12,138.21,138.17,2.2939]
[1728582022600,3.6214,138.2,138.17,13.4139]
[1728582022800,5.68,138.21,138.17,13.4139]
[1728582023196,3.6215,138.2,138.17,13.4139]
[1728582023607,3.6215,138.2,138.17,17.036]
[1728582023807,3.6215,138.2,138.17,13.4139]
[1728582024201,5.68,138.21,138.17,13.4139]
[1728582024408,5.68,138.22,138.2,11.12]
[1728582024908,5.68,138.22,138.2,13.28888]
[1728582025205,9.3009,138.22,138.2,13.28888]
[1728582027401,9.3009,138.22,138.2,2.16888]
[1728582029008,3.6211,138.21,138.2,2.16888]
[1728582029218,104.05939199,138.28,138.21,3.6209]
[1728582029409,5.68,138.27,138.23,11.12]
[1728582029807,3.6199,138.26,138.23,13.28888]
[1728582030209,5.68,138.27,138.23,13.28888]
[1728582030408,3.6201,138.25,138.23,13.28888]
[1728582031807,5.68,138.27,138.23,13.28888]
[1728582032009,3.6203,138.24,138.23,2.16888]
[1728582034113,3.6201,138.25,138.23,13.28888]
[1728582035416,3.6203,138.24,138.23,13.28888]
[1728582035813,3.6203,138.24,138.23,2.16888]
[1728582036313,3.6203,138.24,138.22,11.12]
[1728582036314,3.6205,138.23,138.22,2.16888]
[1728582036519,20.34732865,138.24,138.22,2.16888]
[1728582037110,3.6212,138.21,138.18,13.863]
[1728582037309,1.45232,138.21,138.19,5.4231113]
[1728582037518,1.45232,138.21,138.18,13.863]
[1728582037722,1.45232,138.21,138.19,5.42303944]
[1728582037909,1.45232,138.21,138.18,16.03251]
[1728582038114,1.45232,138.21,138.19,5.42302868]
[1728582038313,1.45232,138.21,138.19,2.16951]
[1728582039221,20.34732865,138.24,138.19,13.28951]
[1728582039428,3.6207,138.23,138.21,11.12]
[1728582039620,5.68,138.24,138.21,11.12]
[1728582039817,5.68,138.24,138.21,13.28951]
[1728582040220,3.6206,138.23,138.21,13.28951]
[1728582041116,9.3004,138.24,138.22,11.12]
[1728582041420,5.68,138.24,138.22,11.12]
[1728582041611,5.68,138.27,138.22,13.28951]
[1728582041818,3.6202,138.25,138.22,13.28951]
[1728582042226,5.68,138.27,138.22,13.28951]
[1728582042418,16.8,138.27,138.22,13.28951]
[1728582043026,3.6199,138.26,138.22,13.28951]
[1728582043219,16.8,138.27,138.22,13.28951]
[1728582043614,3.6205,138.23,138.22,2.16951]
[1728582045727,3.621,138.22,138.21,2.16951]
[1728582046027,20.46963311,138.24,138.21,2.16951]
[1728582046921,3.6208,138.22,138.21,2.16951]
[1728582047223,14.7408,138.22,138.21,2.16951]
[1728582047419,1.45229,138.19,138.17,0.12502]
[1728582047819,1.45229,138.19,138.17,2.295]
[1728582048119,3.6219,138.18,138.17,2.295]
[1728582052824,20.4219,138.18,138.17,2.295]
[1728582053020,16.8,138.18,138.15,0.8792]
[1728582053224,11.12,138.16,138.11,0.12502]
[1728582053429,11.12,138.13,138.11,1.00422]
[1728582054528,3.6234,138.12,138.11,1.00422]
[1728582054926,20.4234,138.12,138.11,1.00422]
[1728582055129,20.4234,138.12,138.11,0.12502]
[1728582056124,3.624,138.1,138.09,0.8792]
[1728582056326,11.12,138.1,138.09,0.8792]
[1728582057032,14.744,138.1,138.09,0.8792]
[1728582059325,3.624,138.1,138.09,0.8792]
[1728582062428,3.6237,138.11,138.09,0.8792]
[1728582062734,5.68,138.12,138.09,0.8792]
[1728582063229,3.6238,138.11,138.09,11.9992]
[1728582063630,5.68,138.12,138.09,11.9992]
[1728582063838,3.624,138.1,138.09,0.8792]
[1728582064232,14.744,138.1,138.09,0.8792]
[1728582066334,9.304,138.1,138.09,0.8792]
[1728582068340,20.424,138.1,138.09,0.8792]
[1728582076642,9.304,138.1,138.09,0.8792]
[1728582077140,20.424,138.1,138.09,0.8792]
[1728582078040,3.624,138.1,138.09,0.8792]
[1728582079743,14.744,138.1,138.09,0.8792]
[1728582092559,3.6242,138.09,138.08,0.8792]
[1728582092759,11.12,138.09,138.08,0.8792]
[1728582093259,11.12,138.09,138.05,0.12502]
[1728582093260,11.12,138.09,138.07,0.8792]
[1728582093456,16.8,138.08,138.07,0.8792]
[1728582093660,20.4245,138.08,138.07,0.8792]
[1728582095065,3.6247,138.07,138.06,0.8792]
[1728582095266,106.47444006,138.14,138.06,0.8792]
[1728582095267,21.73,138.13,138.06,0.8792]
[1728582095563,1.27449068,138.12,138.09,11.12]
[1728582095764,5.68,138.12,138.09,11.12]
[1728582096160,5.68,138.12,138.09,11.9992]
[1728582096362,3.6238,138.11,138.09,11.9992]
[1728582097170,5.68,138.12,138.09,0.8792]
[1728582097171,3.624,138.1,138.09,0.8792]
[1728582098159,3.6238,138.11,138.09,0.8792]
[1728582099661,16.8,138.12,138.09,0.8792]
[1728582099862,20.4235,138.12,138.09,0.8792]
[1728582100166,5.68,138.12,138.09,11.9992]
[1728582100667,3.6238,138.11,138.09,11.9992]
[1728582101064,3.6238,138.11,138.09,0.8792]
[1728582103167,3.6937871,138.14,138.09,11.9992]
[1728582103372,11.12,138.16,138.11,11.12]
[1728582103674,16.78,138.16,138.11,11.12]
[1728582103966,16.78,138.16,138.11,11.9992]
[1728582104170,20.42227401,138.16,138.11,11.9992]
[1728582104379,3.6229,138.15,138.11,15.6228]
[1728582105770,3.6229,138.15,138.11,11.9992]
[1728582105972,3.6229,138.15,138.12,11.12]
[1728582106573,3.6229,138.15,138.12,11.9992]
[1728582106768,9.2825,138.16,138.12,11.9992]
[1728582107074,9.2825,138.16,138.13,1.334]
[1728582107874,3.6227,138.15,138.13,2.2132]
[1728582109067,9.40722,138.17,138.13,13.3332]
[1728582109269,0.12502,138.17,138.15,11.12]
[1728582109675,0.12502,138.17,138.15,11.9992]
[1728582110069,0.12502,138.17,138.16,11.12]
[1728582110272,5.66,138.19,138.16,11.9992]
[1728582110672,11.12,138.21,138.16,11.9992]
[1728582110868,16.78,138.21,138.16,11.9992]
[1728582111173,3.6216,138.19,138.16,11.9992]
[1728582111770,3.6215,138.2,138.16,11.9992]
[1728582112479,3.6215,138.2,138.17,11.12]
[1728582112777,3.6215,138.2,138.17,11.9992]
[1728582114376,11.12,138.2,138.17,0.8792]
[1728582114675,14.7419,138.18,138.17,0.8792]
[1728582115670,14.7419,138.18,138.16,0.8792]
[1728582115671,3.6221,138.17,138.16,0.8792]
[1728582115873,11.12,138.17,138.16,0.8792]
[1728582116373,14.7421,138.17,138.16,0.8792]
[1728582116578,18.37709312,138.17,138.16,0.8792]
[1728582117274,14.75499312,138.17,138.13,1.334]
[1728582117481,2.7437,138.15,138.13,1.334]
[1728582117877,2.7437,138.15,138.13,3.50445]
[1728582122882,14.75499312,138.17,138.13,3.50445]
[1728582123084,3.6229,138.14,138.13,3.50445]
[1728582124375,16.78,138.18,138.13,14.62445]
[1728582125081,3.6223,138.17,138.13,18.24745]
[1728582125283,3.6223,138.17,138.13,14.62445]
[1728582125474,16.78,138.18,138.13,14.62445]
[1728582125878,16.78,138.18,138.13,18.24745]
[1728582125879,3.6222,138.17,138.13,18.24745]
[1728582126877,3.6222,138.17,138.14,14.7428]
[1728582127077,3.6222,138.17,138.15,11.12]
[1728582127473,3.6222,138.17,138.15,2.17045]
[1728582127782,11.12,138.19,138.15,13.29045]
[1728582128685,3.6219,138.18,138.15,16.91305]
[1728582128884,3.6219,138.18,138.15,13.29045]
[1728582131278,5.66,138.2,138.15,13.29045]
[1728582131487,3.6217,138.19,138.15,16.91295]
[1728582132085,3.6217,138.19,138.16,11.12]
[1728582132282,3.6215,138.2,138.18,11.12]
[1728582132780,0.12502,138.23,138.19,11.12]
[1728582132983,5.78502,138.23,138.19,12.516]
[1728582133478,3.6209,138.22,138.19,14.68645]
[1728582134087,3.74572,138.23,138.21,11.12]
[1728582134876,0.12502,138.23,138.21,11.12]
[1728582135182,89.4,138.28,138.22,11.12]
[1728582135387,6.93474396,138.27,138.23,11.12]
[1728582135576,3.62,138.26,138.23,13.29045]
[1728582135891,11.12,138.25,138.23,2.17045]
[1728582136075,3.6203,138.24,138.23,2.17045]
[1728582138878,5.66,138.27,138.23,2.17045]
[1728582139081,5.66,138.28,138.23,2.17045]
[1728582139691,3.6196,138.27,138.23,5.79095]
[1728582140085,5.66,138.28,138.23,2.17045]
[1728582140286,3.6196,138.27,138.23,2.17045]
[1728582140685,5.66,138.28,138.23,2.17045]
[1728582141788,3.6202,138.25,138.23,2.17045]
[1728582142785,3.6203,138.24,138.23,2.17045]
[1728582143289,5.66,138.28,138.23,2.17045]
[1728582143491,3.6202,138.25,138.23,2.17045]
[1728582143686,5.66,138.28,138.23,2.17045]
[1728582144387,3.62,138.26,138.23,2.17045]
[1728582144989,3.62,138.26,138.23,5.79085]
[1728582145189,3.62,138.26,138.24,1.307]
[1728582145781,3.6196,138.27,138.24,4.9271]
[1728582145987,3.6196,138.27,138.24,7.09755]
[1728582146184,0.12502,138.29,138.24,3.47745]
[1728582146384,3.6195,138.27,138.24,7.09765]
[1728582149501,3.6195,138.27,138.25,3.62]
[1728582149703,3.6195,138.27,138.25,2.17045]
[1728582149997,0.12502,138.29,138.25,2.17045]
[1728582150701,3.6198,138.26,138.25,2.17045]
[1728582155190,0.12502,138.29,138.25,2.17045]
[1728582155394,3.6194,138.28,138.25,19.55045]
[1728582156205,3.6194,138.28,138.26,3.6195]
[1728582156405,3.6194,138.28,138.26,5.78995]
[1728582156594,3.6194,138.28,138.27,11.11]
[1728582157005,3.6194,138.28,138.27,13.28045]
[1728582158610,3.74412,138.29,138.27,13.28045]
[1728582158911,3.74412,138.29,138.28,11.11]
[1728582159106,3.74412,138.29,138.28,13.28045]
[1728582159812,3.74412,138.29,138.28,2.17045]
[1728582165809,0.12502,138.29,138.28,13.28045]
[1728582166403,0.12502,138.29,138.28,16.89965]
[1728582167121,0.12502,138.29,138.28,13.28045]
[1728582168118,0.12502,138.29,138.28,2.17045]
[1728582170419,0.12502,138.29,138.28,13.28045]
[1728582178132,0.12502,138.29,138.28,16.89965]
[1728582179229,14.79202347,138.35,138.29,3.6187]
[1728582179432,14.79202347,138.35,138.3,11.11]
[1728582179624,3.6181,138.33,138.3,11.11]
[1728582180240,3.6182,138.32,138.3,11.11]
[1728582180433,14.79202347,138.35,138.3,13.28045]
[1728582181134,14.79202347,138.35,138.3,2.17045]
[1728582181434,11.11,138.34,138.3,2.17045]
[1728582181636,3.6185,138.31,138.3,2.17045]
[1728582185342,11.11,138.31,138.25,5.64]
[1728582185536,11.11,138.3,138.25,16.75]
[1728582186037,3.6193,138.28,138.25,22.53823]
[1728582186238,3.6193,138.28,138.26,11.11]
[1728582186439,3.6193,138.28,138.26,13.27833]
[1728582187538,3.6193,138.28,138.26,16.89803]
[1728582188238,3.6195,138.27,138.26,13.27833]
[1728582188843,5.64,138.33,138.26,13.27833]
[1728582189046,11.11,138.32,138.28,11.11]
[1728582189345,3.619,138.29,138.28,11.11]
[1728582189744,11.11,138.32,138.28,2.16833]
[1728582190045,3.619,138.29,138.28,2.16833]
[1728582193439,14.729,138.29,138.28,2.16833]
[1728582193634,14.729,138.29,138.23,0.12502]
[1728582193635,3.6203,138.24,138.23,0.12502]
[1728582193839,3.6203,138.24,138.23,5.53360225]
[1728582194039,3.6203,138.24,138.23,7.70185225]
[1728582194544,16.75,138.26,138.23,7.70185225]
[1728582194545,3.6201,138.25,138.23,7.70185225]
[1728582194838,3.6201,138.25,138.23,2.29327]
[1728582195038,5.64,138.26,138.23,13.40327]
[1728582195239,9.2599,138.26,138.24,5.41023379]
[1728582195435,9.2599,138.26,138.24,2.16825]
[1728582195639,3.62,138.25,138.24,2.16825]
[1728582197540,14.73,138.25,138.24,2.16825]
[1728582197940,3.62,138.25,138.24,2.16825]
[1728582200943,16.75,138.26,138.24,2.16825]
[1728582202047,3.62,138.25,138.24,2.16825]
[1728582203646,14.73,138.25,138.24,2.16825]
[1728582204246,3.62,138.25,138.24,2.16825]
[1728582204543,14.73,138.25,138.24,2.16825]
[1728582205142,3.62,138.25,138.24,2.16825]
[1728582225469,3.6196,138.27,138.24,16.89845]
[1728582225655,36.28442347,138.35,138.26,11.11]
[1728582225656,16.75,138.32,138.26,11.11]
[1728582225858,16.75,138.32,138.27,11.11]
[1728582226060,3.6186,138.31,138.27,16.89775]
[1728582226465,5.64,138.32,138.27,13.27825]
[1728582226668,3.6186,138.31,138.27,16.89765]
[1728582227662,5.64,138.32,138.3,11.11]
[1728582228565,5.64,138.32,138.3,13.27825]
[1728582228764,3.618,138.33,138.3,13.27825]
[1728582229364,3.6178,138.34,138.31,11.11]
[1728582229568,108.36794307,138.35,138.32,11.11]
[1728582229964,111.98544307,138.35,138.32,11.11]
[1728582230158,111.98544307,138.35,138.32,13.27825]
[1728582230962,0.12502,138.35,138.34,11.11]
[1728582231765,0.12502,138.35,138.34,13.27825]
[1728582232566,0.12502,138.35,138.34,16.89595]
[1728582232762,11.23502,138.41,138.34,13.27825]
[1728582232967,6.89452033,138.4,138.39,11.11]
[1728582233462,6.89452033,138.4,138.39,2.16825]
[1728582235268,5.62,138.4,138.39,2.16825]
[1728582235766,9.2361,138.4,138.39,2.16825]
[1728582236180,5.62,138.4,138.36,11.11]
[1728582236469,5.62,138.4,138.36,13.27825]
[1728582236770,5.62,138.4,138.36,2.16825]
[1728582236969,5.62,138.4,138.36,13.27825]
[1728582237361,11.23502,138.41,138.36,13.27825]
[1728582237558,3.6165,138.39,138.36,13.27825]
[1728582239270,11.23502,138.41,138.36,13.27825]
[1728582239271,3.6166,138.38,138.36,13.27825]
[1728582240075,0.12502,138.41,138.37,11.11]
[1728582240276,4.89076255,138.4,138.38,11.11]
[1728582240466,0.12502,138.41,138.38,2.16825]
[1728582240667,1.27446256,138.4,138.38,2.16825]
[1728582240870,3.6165,138.39,138.38,2.16825]
[1728582242572,14.7265,138.39,138.38,2.16825]
[1728582242777,12.38451446,138.39,138.34,11.11]
[1728582242973,12.38451446,138.39,138.34,13.27825]
[1728582242974,11.11,138.39,138.34,13.27825]
[1728582243275,16.73,138.39,138.34,13.27825]
[1728582243473,3.617,138.37,138.34,13.27825]
[1728582243669,5.62,138.39,138.35,11.11]
[1728582243976,5.62,138.39,138.35,13.27825]
[1728582244376,20.32158944,138.39,138.35,2.16825]
[1728582244772,11.11,138.38,138.35,2.16825]
[1728582244977,3.6171,138.36,138.35,2.16825]
[1728582246078,3.6174,138.35,138.34,2.16825]
[1728582246379,11.11,138.35,138.34,2.16825]
[1728582246567,14.7274,138.35,138.34,2.16825]
[1728582247878,11.11,138.35,138.3,11.11]
[1728582248081,11.11,138.35,138.3,13.27825]
[1728582248988,11.11,138.35,138.3,2.16825]
[1728582250481,11.11,138.33,138.3,2.16825]
[1728582250680,11.11,138.32,138.3,2.16825]
[1728582250993,3.6185,138.31,138.3,2.16825]
[1728582255292,3.6182,138.32,138.3,2.16825]
[1728582258196,3.6185,138.31,138.3,2.16825]
[1728582260194,16.73,138.33,138.3,2.16825]
[1728582260499,3.6183,138.32,138.3,2.16825]
[1728582261001,20.3481,138.33,138.3,2.16825]
[1728582261203,16.73,138.33,138.3,2.16825]
[1728582261694,3.6183,138.32,138.3,2.16825]
[1728582263499,3.6185,138.31,138.3,2.16825]
[1728582279011,14.7285,138.31,138.3,2.16825]
[1728582279307,3.6187,138.3,138.29,2.29327]
[1728582279502,20.3487,138.3,138.29,0.12502]
[1728582286914,9.2387,138.3,138.29,0.12502]
[1728582287115,3.6187,138.3,138.29,0.12502]
[1728582288918,3.6187,138.3,138.29,2.29327]
[1728582289712,9.2386,138.31,138.29,2.29327]
[1728582290421,5.62,138.31,138.29,2.29327]
[1728582291823,9.2385,138.31,138.29,2.29327]
[1728582296029,3.6183,138.32,138.29,5.91207]
[1728582296323,5.62,138.33,138.3,11.11]
[1728582296824,3.6183,138.32,138.3,13.27825]
[1728582297620,3.6183,138.32,138.3,2.16825]
[1728582303027,3.6183,138.32,138.3,5.78695]
[1728582304429,3.6183,138.32,138.3,2.16825]
[1728582305725,3.6183,138.32,138.3,16.89695]
[1728582305924,3.6183,138.32,138.3,18.32555]
[1728582306119,3.6177,138.34,138.31,11.11]
[1728582306324,104.01907789,138.38,138.32,14.7281]
[1728582306325,11.11,138.37,138.32,14.7281]
[1728582306526,5.62,138.36,138.32,11.11]
[1728582307230,5.62,138.36,138.33,11.11]
[1728582307630,5.62,138.36,138.33,13.27825]
[1728582308223,78.16,138.4,138.34,11.11]
[1728582308428,5.62,138.39,138.34,11.11]
[1728582308630,16.73,138.39,138.34,11.11]
[1728582309026,3.98752502,138.46,138.37,11.11]
[1728582309222,11.11,138.42,138.37,11.11]
[1728582309428,11.11,138.42,138.39,14.7262]
[1728582309429,5.62,138.42,138.39,14.7262]
[1728582309629,5.62,138.42,138.39,11.11]
[1728582310034,9.2356,138.42,138.39,11.11]
[1728582310239,5.62,138.42,138.39,13.27825]
[1728582310629,5.62,138.44,138.39,16.89445]
[1728582310829,16.73,138.44,138.39,16.89445]
[1728582311030,16.73,138.44,138.39,13.27825]
[1728582311230,20.3452,138.44,138.4,3.6161]
[1728582311434,20.3452,138.44,138.4,5.78435]
[1728582312636,16.73,138.44,138.4,2.16825]
[1728582312835,14.7255,138.43,138.4,2.16825]
[1728582313029,11.11,138.43,138.4,2.16825]
[1728582314138,11.11,138.42,138.4,2.16825]
[1728582314934,3.74082,138.41,138.4,2.16825]
[1728582317935,14.85082,138.41,138.4,2.16825]
[1728582318240,14.85082,138.41,138.36,11.11]
[1728582318241,16.83502,138.41,138.36,11.11]
[1728582318439,16.83502,138.41,138.37,11.11]
[1728582318736,3.6163,138.4,138.37,11.11]
[1728582318940,11.11,138.4,138.36,2.16723]
[1728582319434,3.6168,138.38,138.36,2.16723]
[1728582320137,3.6169,138.37,138.36,2.16723]
[1728582321031,16.83502,138.41,138.36,13.27723]
[1728582321235,3.6165,138.39,138.37,11.11]
[1728582322240,3.6165,138.39,138.37,2.16723]
[1728582322633,3.6166,138.38,138.37,2.16723]
[1728582325540,3.6169,138.37,138.36,2.16723]
[1728582325740,16.71,138.38,138.36,2.16723]
[1728582325938,11.11,138.37,138.36,2.16723]
[1728582326142,14.7269,138.37,138.36,2.16723]
[1728582327849,3.6169,138.37,138.36,2.16723]
[1728582328645,14.7269,138.37,138.36,2.16723]
[1728582330452,3.6171,138.36,138.35,2.16723]
[1728582330653,11.11,138.36,138.3,1.4018]
[1728582330951,11.11,138.32,138.3,2.16723]
[1728582331647,14.7284,138.32,138.3,2.16723]
[1728582331849,3.6184,138.32,138.3,2.16723]
[1728582332246,3.6185,138.31,138.3,2.16723]
[1728582332441,9.2185,138.31,138.3,2.16723]
[1728582333643,20.3285,138.31,138.3,2.16723]
[1728582333849,20.3285,138.31,138.28,2.16723]
[1728582333850,16.71,138.31,138.28,2.16723]
[1728582334052,11.11,138.29,138.2,15.2442]
[1728582334253,11.11,138.25,138.2,15.2442]
[1728582334448,11.11,138.25,138.23,2.29421]
[1728582334855,5.6,138.26,138.23,2.29421]
[1728582335752,1.9166,138.33,138.23,13.40421]
[1728582335958,11.11,138.29,138.25,11.11]
[1728582336256,5.6,138.28,138.25,11.11]
[1728582336451,5.6,138.28,138.25,13.27919]
[1728582337058,9.2194,138.28,138.25,13.27919]
[1728582337755,20.3294,138.28,138.25,2.16919]
[1728582338563,1.4067,138.33,138.25,13.27919]
[1728582338756,11.11,138.31,138.26,14.7296]
[1728582338949,6.87352002,138.32,138.24,11.11]
[1728582338950,11.11,138.29,138.24,11.11]
[1728582339349,14.7291,138.29,138.25,3.6199]
[1728582339852,11.11,138.29,138.25,3.6199]
[1728582340052,3.6192,138.28,138.25,3.6199]
[1728582340260,16.71,138.29,138.25,3.6199]
[1728582340461,16.71,138.29,138.25,4.9374]
[1728582340757,20.3292,138.29,138.25,4.9374]
[1728582341353,11.11,138.29,138.25,4.9374]
[1728582341554,3.6193,138.28,138.25,16.0474]
[1728582344365,3.6193,138.28,138.25,18.21589]
[1728582348361,16.71,138.3,138.26,31.05628803]
[1728582348362,7.3193911,138.27,138.26,31.05628803]
[1728582348560,20.3295,138.27,138.26,6.75136696]
[1728582349162,20.24663399,138.27,138.24,2.16849]
[1728582349362,11.11,138.25,138.24,2.16849]
[1728582350569,14.73,138.25,138.24,2.16849]
[1728582362974,11.11,138.25,138.23,0.12502]
[1728582363171,14.7303,138.24,138.23,0.12502]
[1728582363375,20.3303,138.24,138.23,0.12502]
[1728582363778,16.71,138.24,138.19,1.3794]
[1728582364076,11.11,138.2,138.19,2.16849]
[1728582364780,14.7313,138.2,138.19,2.16849]
[1728582366176,11.11,138.2,138.19,2.16849]
[1728582367180,14.7313,138.2,138.19,2.16849]
[1728582368283,5.6,138.21,138.19,2.16849]
[1728582368471,5.6,138.21,138.19,5.78999]
[1728582370783,5.6,138.21,138.19,2.16849]
[1728582370980,9.2212,138.21,138.19,2.16849]
[1728582372480,14.7313,138.2,138.19,2.16849]
[1728582377688,11.11,138.25,138.19,13.27849]
[1728582377996,16.71,138.25,138.2,12.4282]
[1728582378287,11.11,138.24,138.2,4.92999]
[1728582378690,14.7311,138.21,138.2,2.16849]
[1728582378877,11.11,138.21,138.19,2.16849]
[1728582379186,11.11,138.2,138.19,2.16849]
[1728582379383,14.7313,138.2,138.19,2.16849]
[1728582380592,18.43558641,138.2,138.19,2.16849]
[1728582381291,14.81428641,138.2,138.17,0.12502]
[1728582381585,11.11,138.18,138.17,2.29351]
[1728582381889,14.7319,138.18,138.17,2.29351]
[1728582382286,18.34742844,138.18,138.17,2.29351]
[1728582382879,18.34742844,138.18,138.17,0.12502]
[1728582385086,7.23742844,138.18,138.17,0.12502]
[1728582385286,18.34742844,138.18,138.17,0.12502]
[1728582394587,11.11,138.15,138.13,2.16849]
[1728582394795,16.71,138.15,138.13,2.16849]
[1728582394989,14.77223931,138.14,138.13,2.16849]
[1728582395183,18.39523931,138.14,138.13,2.16849]
[1728582395588,3.623,138.14,138.13,2.16849]
[1728582395988,14.733,138.14,138.13,2.16849]
[1728582396197,18.29195003,138.14,138.13,2.16849]
[1728582398697,11.11,138.14,138.13,2.16849]
[1728582398897,20.3328,138.15,138.13,2.16849]
[1728582399095,23.94901216,138.15,138.13,2.16849]
[1728582400302,3.6229,138.14,138.13,2.16849]
[1728582400700,20.32621216,138.15,138.13,2.16849]
[1728582400891,3.6228,138.15,138.13,2.16849]
[1728582401098,16.71,138.17,138.13,13.27849]
[1728582401298,16.71,138.17,138.13,2.16849]
[1728582401496,3.6225,138.16,138.13,2.16849]
[1728582401792,11.11,138.15,138.13,2.16849]
[1728582402202,14.7328,138.15,138.13,2.16849]